fUSD/lending_fUSD_20250222
["ID","MTS","AMOUNT","RATE_DAILY","PERIOD"]
[354061993,1740216647251,-500.0,0.00011762,2]
[354061995,1740216647262,-500.0,0.00011762,2]
[354061997,1740216647271,-500.0,0.00011762,2]
[354061999,1740216647281,-500.0,0.00011762,2]
[354062001,1740216647291,-500.0,0.00011762,2]
[354062002,1740216647303,-500.0,0.00011762,2]
[354062004,1740216647313,-500.0,0.00011762,2]
[354062006,1740216647322,-500.0,0.00011762,2]
[354062009,1740216647332,-500.0,0.00011762,2]
[354062011,1740216647342,-500.0,0.00011762,2]
[354062013,1740216647352,-500.0,0.00011762,2]
[354062015,1740216647361,-500.0,0.00011762,2]
[354062017,1740216647371,-500.0,0.00011762,2]
[354062019,1740216647380,-500.0,0.00011762,2]
[354062021,1740216647389,-500.0,0.00011762,2]
[354062023,1740216647399,-500.0,0.00011762,2]
[354062025,1740216647408,-500.0,0.00011762,2]
[354062027,1740216647418,-500.0,0.00011762,2]
[354062029,1740216647428,-500.0,0.00011762,2]
[354062031,1740216647437,-500.0,0.00011762,2]
[354062033,1740216647447,-500.0,0.00011762,2]
[354062035,1740216647457,-500.0,0.00011762,2]
[354062037,1740216647467,-500.0,0.00011762,2]
[354062039,1740216647477,-500.0,0.00011762,2]
[354062041,1740216647487,-500.0,0.00011762,2]
[354062043,1740216647496,-500.0,0.00011762,2]
[354062045,1740216647506,-500.0,0.00011762,2]
[354062047,1740216647515,-500.0,0.00011762,2]
[354062049,1740216647525,-500.0,0.00011762,2]
[354062051,1740216647534,-500.0,0.00011762,2]
[354062053,1740216647544,-500.0,0.00011762,2]
[354062055,1740216647553,-500.0,0.00011762,2]
[354062057,1740216647562,-500.0,0.00011762,2]
[354062059,1740216647571,-500.0,0.00011762,2]
[354062061,1740216647580,-500.0,0.00011762,2]
[354062063,1740216647590,-500.0,0.00011762,2]
[354062065,1740216647604,-500.0,0.00011762,2]
[354062067,1740216647613,-500.0,0.00011762,2]
[354062069,1740216647623,-500.0,0.00011762,2]
[354062071,1740216647632,-500.0,0.00011762,2]
[354062073,1740216647643,-500.0,0.00011762,2]
[354062075,1740216647653,-501.90679933,0.00011762,2]
[354062077,1740216647664,-500.0,0.00011762,2]
[354062080,1740216647673,-518.18904852,0.00011762,2]
[354062082,1740216647683,-500.0,0.00011762,2]
[354062083,1740216647695,-500.0,0.00011762,2]
[354062085,1740216647704,-505.22260748,0.00011762,2]
[354062087,1740216647713,-500.0,0.00011762,2]
[354062089,1740216647722,-500.0,0.00011762,2]
[354062091,1740216647731,-501.5248325,0.00011762,2]
[354062093,1740216647741,-354.38734119,0.00011762,2]
[354062095,1740216647750,-503.17754851,0.00011762,2]
[354062097,1740216647759,-107328.0866,0.00011763,2]
[354062099,1740216647768,-61593.81371612,0.00011763,2]
[354062105,1740216647814,-500.0,0.00011768,2]
[354062107,1740216647823,-500.0,0.00011768,2]
[354062109,1740216647832,-500.0,0.00011768,2]
[354062111,1740216647842,-500.0,0.00011768,2]
[354062113,1740216647851,-500.0,0.00011768,2]
[354062115,1740216647861,-500.0,0.00011768,2]
[354062117,1740216647870,-500.0,0.00011768,2]
[354062119,1740216647879,-500.0,0.00011768,2]
[354062121,1740216647890,-500.0,0.00011768,2]
[354062123,1740216647899,-203.37737616,0.00011768,2]
[354062125,1740216647909,-500.0,0.00011768,2]
[354062127,1740216647918,-157.77123,0.00011768,2]
[354062130,1740216647928,-500.0,0.00011768,2]
[354062132,1740216647938,-420.92074856,0.00011768,2]
[354062134,1740216647947,-500.0,0.00011768,2]
[354062136,1740216647956,-500.0,0.00011768,2]
[354062138,1740216647965,-500.0,0.00011768,2]
[354062140,1740216647974,-500.0,0.00011768,2]
[354062142,1740216647984,-500.0,0.00011768,2]
[354062144,1740216647993,-500.0,0.00011768,2]
[354062146,1740216648003,-150.0,0.00011771,2]
[354062148,1740216648013,-150.0,0.00011771,2]
[354062150,1740216648022,-500.0,0.0001178,2]
[354062152,1740216648031,-453.3082799,0.00011786,2]
[354062154,1740216648041,-150.0,0.00011791,2]
[354062156,1740216648050,-150.0,0.0001181,2]
[354062158,1740216648060,-150.0,0.00011814,2]
[354062160,1740216648071,-150.0,0.0001183,2]
[354062162,1740216648083,-150.0,0.00011835,2]
[354062164,1740216648092,-500.0,0.00011843,2]
[354062166,1740216648102,-500.0,0.00011844,2]
[354062168,1740216648111,-193.40313315,0.00011844,2]
[354062170,1740216648120,-500.0,0.00011844,2]
[354062171,1740216648130,-500.0,0.00011844,2]
[354062174,1740216648139,-500.0,0.00011844,2]
[354062176,1740216648148,-500.0,0.00011844,2]
[354062178,1740216648158,-500.0,0.00011844,2]
[354062180,1740216648167,-500.0,0.00011844,2]
[354062182,1740216648176,-500.0,0.00011844,2]
[354062184,1740216648186,-500.0,0.00011844,2]
[354062185,1740216648195,-500.0,0.00011844,2]
[354062188,1740216648205,-500.0,0.00011844,2]
[354062189,1740216648214,-500.0,0.00011844,2]
[354062191,1740216648224,-500.0,0.00011844,2]
[354062193,1740216648234,-518.08647877,0.00011844,2]
[354062196,1740216648244,-500.0,0.00011844,2]
[354062197,1740216648253,-500.0,0.00011844,2]
[354062199,1740216648263,-500.0,0.00011844,2]
[354062201,1740216648272,-504.63749802,0.00011844,2]
[354062203,1740216648283,-500.0,0.00011844,2]
[354062206,1740216648293,-500.0,0.00011844,2]
[354062208,1740216648308,-602.43120992,0.00011844,2]
[354062210,1740216648321,-500.0,0.00011844,2]
[354062212,1740216648333,-500.0,0.00011844,2]
[354062214,1740216648345,-574.36,0.00011844,2]
[354062216,1740216648355,-500.0,0.00011844,2]
[354062217,1740216648365,-507.90257022,0.00011844,2]
[354062220,1740216648374,-168.34,0.00011844,2]
[354062222,1740216648383,-500.0,0.00011844,2]
[354062224,1740216648394,-500.0,0.00011844,2]
[354062226,1740216648404,-500.0,0.00011844,2]
[354062228,1740216648413,-500.0,0.00011844,2]
[354062230,1740216648423,-500.0,0.00011844,2]
[354062232,1740216648432,-500.0,0.00011844,2]
[354062234,1740216648441,-500.0,0.00011844,2]
[354062236,1740216648450,-505.53810419,0.00011844,2]
[354062238,1740216648460,-500.0,0.00011844,2]
[354062240,1740216648470,-502.18602949,0.00011844,2]
[354062242,1740216648479,-513.40102441,0.00011844,2]
[354062244,1740216648489,-500.0,0.00011844,2]
[354062246,1740216648499,-500.0,0.00011844,2]
[354062248,1740216648508,-510.89809691,0.00011844,2]
[354062250,1740216648518,-500.0,0.00011844,2]
[354062252,1740216648527,-500.0,0.00011844,2]
[354062254,1740216648536,-500.0,0.00011844,2]
[354062256,1740216648545,-500.0,0.00011844,2]
[354062258,1740216648555,-504.73432835,0.00011844,2]
[354062260,1740216648564,-500.0,0.00011844,2]
[354062261,1740216648573,-500.0,0.00011844,2]
[354062262,1740216648582,-500.0,0.00011844,2]
[354062263,1740216648590,-508.7247469,0.00011844,2]
[354062264,1740216648604,-505.90662936,0.00011844,2]
[354062265,1740216648613,-500.0,0.00011844,2]
[354062266,1740216648622,-500.0,0.00011844,2]
[354062267,1740216648632,-506.23829389,0.00011844,2]
[354062269,1740216648641,-512.35116957,0.00011844,2]
[354062270,1740216648651,-504.63450392,0.00011844,2]
[354062272,1740216648660,-500.0,0.00011844,2]
[354062274,1740216648670,-500.0,0.00011844,2]
[354062276,1740216648680,-500.0,0.00011844,2]
[354062278,1740216648689,-587.21263405,0.00011844,2]
[354062280,1740216648699,-500.0,0.00011844,2]
[354062282,1740216648708,-500.0,0.00011844,2]
[354062284,1740216648717,-500.0,0.00011844,2]
[354062286,1740216648727,-150.0,0.0001185,2]
[354062288,1740216648738,-500.0,0.0001185,2]
[354062290,1740216648748,-500.0,0.0001185,2]
[354062292,1740216648757,-500.0,0.0001185,2]
[354062294,1740216648766,-500.0,0.0001185,2]
[354062296,1740216648776,-500.0,0.0001185,2]
[354062298,1740216648786,-500.0,0.0001185,2]
[354062300,1740216648795,-500.0,0.0001185,2]
[354062302,1740216648804,-500.0,0.0001185,2]
[354062304,1740216648814,-500.0,0.0001185,2]
[354062306,1740216648823,-500.0,0.0001185,2]
[354062308,1740216648832,-170.7831125,0.0001185,2]
[354062310,1740216648841,-500.0,0.0001185,2]
[354062312,1740216648851,-284.59930211,0.0001185,2]
[354062314,1740216648860,-579.11266073,0.0001185,2]
[354062316,1740216648869,-500.0,0.0001185,2]
[354062318,1740216648878,-500.0,0.0001185,2]
[354062320,1740216648887,-500.0,0.0001185,2]
[354062322,1740216648897,-150.0,0.00011856,2]
[354062324,1740216648906,-500.0,0.00011863,2]
[354062326,1740216648915,-201.3780934,0.00011864,2]
[354062328,1740216648925,-150.0,0.00011869,2]
[354062330,1740216648934,-150.0,0.00011889,2]
[354062332,1740216648943,-150.0,0.00011899,2]
[354062334,1740216648952,-1000.0,0.000119,2]
[354062336,1740216648961,-4300.0,0.000119,4]
[354062338,1740216648970,-150.0,0.00011909,2]
[354062340,1740216648979,-550.51,0.00011927,2]
[354062342,1740216648988,-509.04534547,0.00011927,2]
[354062344,1740216648997,-500.0,0.00011927,2]
[354062346,1740216649006,-156.96899401,0.00011927,2]
[354062348,1740216649016,-500.0,0.00011927,2]
[354062350,1740216649024,-500.0,0.00011927,2]
[354062352,1740216649034,-500.0,0.00011927,2]
[354062354,1740216649043,-500.0,0.00011927,2]
[354062356,1740216649051,-500.0,0.00011927,2]
[354062358,1740216649060,-500.0,0.00011927,2]
[354062360,1740216649070,-500.0,0.00011927,2]
[354062362,1740216649079,-500.0,0.00011927,2]
[354062364,1740216649088,-500.0,0.00011927,2]
[354062366,1740216649097,-500.0,0.00011927,2]
[354062368,1740216649107,-500.0,0.00011927,2]
[354062370,1740216649116,-500.0,0.00011927,2]
[354062372,1740216649125,-407.78773999,0.00011927,2]
[354062374,1740216649134,-571.53841312,0.00011927,2]
[354062376,1740216649143,-500.0,0.00011927,2]
[354062378,1740216649152,-500.0,0.00011927,2]
[354062380,1740216649161,-343.01935491,0.00011927,2]
[354062382,1740216649171,-500.0,0.00011927,2]
[354062384,1740216649179,-374.67830593,0.00011927,2]
[354062386,1740216649188,-500.0,0.00011927,2]
[354062388,1740216649198,-500.0,0.00011927,2]
[354062390,1740216649207,-233.78251144,0.00011927,2]
[354062392,1740216649216,-500.0,0.00011927,2]
[354062394,1740216649225,-500.0,0.00011927,2]
[354062396,1740216649235,-411.54543229,0.00011927,2]
[354062398,1740216649244,-500.0,0.00011927,2]
[354062400,1740216649254,-500.0,0.00011927,2]
[354062402,1740216649263,-316.4279249,0.00011927,2]
[354062404,1740216649272,-558.46051929,0.00011927,2]
[354062406,1740216649281,-527.16740436,0.00011927,2]
[354062408,1740216649291,-500.0,0.00011927,2]
[354062410,1740216649300,-326.95432127,0.00011927,2]
[354062412,1740216649310,-500.0,0.00011927,2]
[354062413,1740216649319,-251.74849844,0.00011927,2]
[354062415,1740216649328,-437.88223484,0.00011927,2]
[354062417,1740216649338,-649.08995455,0.00011927,2]
[354062419,1740216649346,-151.0,0.00011927,2]
[354062421,1740216649355,-151.0,0.00011927,2]
[354062423,1740216649364,-151.0,0.00011927,2]
[354062425,1740216649373,-151.0,0.00011927,2]
[354062427,1740216649383,-151.0,0.00011927,2]
[354062429,1740216649392,-151.0,0.00011927,2]
[354062431,1740216649401,-273.331292,0.00011927,2]
[354062433,1740216649411,-500.0,0.00011927,2]
[354062435,1740216649420,-500.0,0.00011927,2]
[354062437,1740216649429,-528.57405902,0.00011927,2]
[354062439,1740216649438,-500.0,0.00011927,2]
[354062441,1740216649448,-500.0,0.00011927,2]
[354062443,1740216649457,-500.0,0.00011927,2]
[354062445,1740216649467,-150.0,0.00011928,2]
[354062447,1740216649476,-500.0,0.00011932,2]
[354062449,1740216649485,-500.0,0.00011932,2]
[354062451,1740216649494,-500.0,0.00011932,2]
[354062453,1740216649504,-500.0,0.00011932,2]
[354062455,1740216649513,-500.0,0.00011932,2]
[354062457,1740216649522,-500.0,0.00011932,2]
[354062459,1740216649531,-500.0,0.00011932,2]
[354062461,1740216649540,-500.0,0.00011932,2]
[354062463,1740216649549,-500.0,0.00011932,2]
[354062465,1740216649558,-500.0,0.00011932,2]
[354062467,1740216649567,-500.0,0.00011932,2]
[354062469,1740216649576,-500.0,0.00011932,2]
[354062471,1740216649585,-500.0,0.00011932,2]
[354062473,1740216649597,-500.0,0.00011932,2]
[354062475,1740216649606,-150.0,0.00011933,2]
[354062477,1740216649615,-150.0,0.00011933,2]
[354062479,1740216649624,-150.0,0.00011933,2]
[354062481,1740216649633,-150.0,0.00011933,2]
[354062483,1740216649644,-5771.41378954,0.00011933,2]
[354062485,1740216649653,-2766.03573313,0.00011933,2]
[354062487,1740216649662,-53005.49794814,0.00011933,2]
[354062489,1740216649671,-4074.58000652,0.00011933,2]
[354062491,1740216649682,-30814.20972719,0.00011938,2]
[354062493,1740216649691,-150.0,0.00011942,2]
[354062495,1740216649701,-500.0,0.00011945,2]
[354062497,1740216649710,-150.0,0.00011948,2]
[354062499,1740216649721,-150.0,0.00011968,2]
[354062501,1740216649730,-587.0,0.00011978,2]
[354062503,1740216649739,-150.0,0.00011984,2]
[354062505,1740216649748,-150.0,0.00011987,2]
[354062507,1740216649757,-600.0,0.00012,2]
[354062509,1740216649766,-150.0,0.00012007,2]
[354062511,1740216649775,-151.0,0.00012009,2]
[354062513,1740216649784,-500.0,0.00012009,2]
[354062515,1740216649794,-500.0,0.00012009,2]
[354062517,1740216649803,-500.0,0.00012009,2]
[354062519,1740216649813,-500.0,0.00012009,2]
[354062521,1740216649823,-500.0,0.00012009,2]
[354062523,1740216649832,-500.0,0.00012009,2]
[354062525,1740216649842,-500.0,0.00012009,2]
[354062527,1740216649852,-500.0,0.00012009,2]
[354062529,1740216649861,-500.0,0.00012009,2]
[354062531,1740216649870,-500.0,0.00012009,2]
[354062533,1740216649880,-500.0,0.00012009,2]
[354062535,1740216649889,-500.0,0.00012009,2]
[354062537,1740216649898,-500.0,0.00012009,2]
[354062539,1740216649907,-500.0,0.00012009,2]
[354062541,1740216649916,-498.05617588,0.00012009,2]
[354062543,1740216649925,-393.4495211,0.00012009,2]
[354062545,1740216649934,-156.89,0.00012009,2]
[354062547,1740216649943,-500.0,0.00012009,2]
[354062549,1740216649953,-500.0,0.00012009,2]
[354062551,1740216649962,-500.0,0.00012009,2]
[354062553,1740216649971,-500.0,0.00012009,2]
[354062555,1740216649980,-500.0,0.00012009,2]
[354062557,1740216649990,-500.0,0.00012009,2]
[354062559,1740216649999,-500.0,0.00012009,2]
[354062561,1740216650008,-365.00511364,0.00012009,2]
[354062563,1740216650018,-419.18164517,0.00012009,2]
[354062565,1740216650027,-214.35011815,0.00012009,2]
[354062567,1740216650036,-500.0,0.00012009,2]
[354062570,1740216650046,-177.479705,0.00012009,2]
[354062572,1740216650055,-500.0,0.00012014,2]
[354062574,1740216650065,-500.0,0.00012014,2]
[354062576,1740216650074,-500.0,0.00012014,2]
[354062578,1740216650083,-500.0,0.00012014,2]
[354062580,1740216650093,-500.0,0.00012014,2]
[354062582,1740216650102,-500.0,0.00012014,2]
[354062584,1740216650112,-500.0,0.00012014,2]
[354062586,1740216650122,-500.0,0.00012014,2]
[354062588,1740216650132,-500.0,0.00012014,2]
[354062590,1740216650142,-500.0,0.00012014,2]
[354062592,1740216650151,-435.70408726,0.00012014,2]
[354062594,1740216650161,-500.0,0.00012014,2]
[354062596,1740216650171,-500.0,0.00012014,2]
[354062598,1740216650180,-500.0,0.00012014,2]
[354062600,1740216650189,-150.0,0.00012027,2]
[354062602,1740216650198,-150.0,0.00012027,2]
[354062604,1740216650207,-500.0,0.00012027,2]
[354062606,1740216650217,-150.0,0.00012047,2]
[354062608,1740216650226,-150.0,0.00012066,2]
[354062610,1740216650235,-150.0,0.00012069,2]
[354062612,1740216650244,-1029.59994653,0.00012082,2]
[354062614,1740216650253,-1093.91460344,0.00012082,2]
[354062616,1740216650262,-150.0,0.00012086,2]
[354062618,1740216650272,-500.0,0.00012091,2]
[354062620,1740216650282,-500.0,0.00012091,2]
[354062622,1740216650292,-500.0,0.00012091,2]
[354062624,1740216650301,-296.06055901,0.00012091,2]
[354062627,1740216650311,-500.0,0.00012091,2]
[354062629,1740216650320,-500.0,0.00012091,2]
[354062631,1740216650328,-500.0,0.00012091,2]
[354062633,1740216650338,-500.0,0.00012091,2]
[354062635,1740216650347,-500.0,0.00012091,2]
[354062637,1740216650357,-500.0,0.00012091,2]
[354062639,1740216650366,-500.0,0.00012091,2]
[354062641,1740216650376,-500.0,0.00012091,2]
[354062643,1740216650385,-500.0,0.00012091,2]
[354062645,1740216650394,-500.0,0.00012091,2]
[354062647,1740216650404,-500.0,0.00012091,2]
[354062648,1740216650413,-500.0,0.00012091,2]
[354062649,1740216650423,-500.0,0.00012091,2]
[354062650,1740216650432,-500.0,0.00012091,2]
[354062651,1740216650440,-500.0,0.00012091,2]
[354062652,1740216650450,-229.35246796,0.00012091,2]
[354062653,1740216650459,-500.0,0.00012091,2]
[354062654,1740216650468,-500.0,0.00012091,2]
[354062655,1740216650477,-500.0,0.00012096,2]
[354062657,1740216650486,-500.0,0.00012096,2]
[354062659,1740216650495,-500.0,0.00012096,2]
[354062661,1740216650505,-500.0,0.00012096,2]
[354062663,1740216650514,-500.0,0.00012096,2]
[354062665,1740216650523,-500.0,0.00012096,2]
[354062667,1740216650533,-500.0,0.00012096,2]
[354062669,1740216650542,-500.0,0.00012096,2]
[354062671,1740216650551,-553.70361087,0.00012096,2]
[354062673,1740216650560,-620.93,0.00012096,2]
[354062675,1740216650570,-500.0,0.00012096,2]
[354062677,1740216650579,-500.0,0.00012096,2]
[354062679,1740216650589,-302.16779834,0.00012097,2]
[354062681,1740216650600,-150.0,0.00012106,2]
[354062683,1740216650609,-500.0,0.00012109,2]
[354062685,1740216650619,-150.0,0.00012112,2]
[354062687,1740216650628,-150.0,0.00012125,2]
[354062689,1740216650637,-150.0,0.00012145,2]
[354062691,1740216650647,-150.0,0.00012155,2]
[354062693,1740216650657,-150.0,0.00012155,2]
[354062695,1740216650668,-150.0,0.00012165,2]
[354062697,1740216650678,-500.0,0.00012173,2]
[354062699,1740216650688,-500.0,0.00012173,2]
[354062701,1740216650698,-257.35093497,0.00012173,2]
[354062703,1740216650707,-500.0,0.00012173,2]
[354062705,1740216650717,-500.0,0.00012173,2]
[354062707,1740216650726,-500.0,0.00012173,2]
[354062709,1740216650736,-408.07156605,0.00012173,2]
[354062711,1740216650745,-500.0,0.00012173,2]
[354062713,1740216650755,-172.92,0.00012173,2]
[354062715,1740216650764,-500.0,0.00012173,2]
[354062717,1740216650774,-500.0,0.00012173,2]
[354062720,1740216650784,-500.0,0.00012173,2]
[354062721,1740216650793,-500.0,0.00012173,2]
[354062724,1740216650804,-554.73924634,0.00012173,2]
[354062726,1740216650814,-500.0,0.00012173,2]
[354062727,1740216650823,-500.0,0.00012173,2]
[354062730,1740216650833,-500.0,0.00012173,2]
[354062732,1740216650842,-500.0,0.00012173,2]
[354062734,1740216650852,-627.66389751,0.00012173,2]
[354062736,1740216650862,-204.72644982,0.00012173,2]
[354062738,1740216650872,-500.0,0.00012179,2]
[354062740,1740216650882,-329.84745454,0.00012179,2]
[354062742,1740216650892,-500.0,0.00012179,2]
[354062744,1740216650901,-500.0,0.00012179,2]
[354062746,1740216650910,-500.0,0.00012179,2]
[354062748,1740216650919,-150.0,0.00012184,2]
[354062750,1740216650929,-30814.20972719,0.00012188,2]
[354062752,1740216650939,-500.0,0.00012191,2]
[354062753,1740216650949,-150.0,0.00012197,2]
[354062754,1740216650958,-150.0,0.00012204,2]
[354062755,1740216650968,-150.0,0.00012224,2]
[354062756,1740216650978,-150.0,0.0001224,2]
[354062757,1740216650987,-150.0,0.00012243,2]
[354062758,1740216650997,-500.0,0.00012255,2]
[354062759,1740216651007,-500.0,0.00012255,2]
[354062760,1740216651016,-558.48236375,0.00012255,2]
[354062761,1740216651026,-500.0,0.00012255,2]
[354062762,1740216651035,-500.0,0.00012255,2]
[354062763,1740216651045,-440.39146994,0.00012255,2]
[354062764,1740216651055,-644.88581764,0.00012255,2]
[354062765,1740216651064,-500.0,0.00012255,2]
[354062766,1740216651074,-500.0,0.00012255,2]
[354062767,1740216651083,-500.0,0.00012255,2]
[354062768,1740216651093,-373.89635156,0.00012255,2]
[354062769,1740216651103,-500.0,0.00012255,2]
[354062770,1740216651113,-499.1,0.00012255,2]
[354062772,1740216651122,-313.53212272,0.00012255,2]
[354062774,1740216651132,-201.3780934,0.00012257,2]
[354062776,1740216651142,-500.0,0.00012261,2]
[354062778,1740216651151,-150.0,0.00012263,2]
[354062780,1740216651160,-500.0,0.00012273,2]
[354062782,1740216651170,-150.0,0.00012283,2]
[354062784,1740216651180,-150.0,0.00012283,2]
[354062786,1740216651189,-150.0,0.00012302,2]
[354062788,1740216651199,-150.0,0.00012322,2]
[354062790,1740216651208,-150.0,0.00012325,2]
[354062791,1740216651218,-1000.0,0.00012328,2]
[354062793,1740216651228,-151.0,0.00012329,2]
[354062794,1740216651237,-151.0,0.00012329,2]
[354062795,1740216651252,-151.0,0.00012329,2]
[354062796,1740216651261,-151.685095,0.00012329,2]
[354062797,1740216651271,-151.0,0.00012329,2]
[354062798,1740216651280,-151.0,0.00012329,2]
[354062799,1740216651290,-151.0,0.00012329,2]
[354062800,1740216651300,-151.0,0.00012329,2]
[354062801,1740216651310,-151.0,0.00012329,2]
[354062802,1740216651320,-227.971787,0.00012329,2]
[354062803,1740216651330,-151.0,0.00012329,2]
[354062804,1740216651341,-151.0,0.00012329,2]
[354062805,1740216651351,-151.0,0.00012329,2]
[354062806,1740216651361,-151.0,0.00012329,2]
[354062807,1740216651374,-151.0,0.00012329,2]
[354062808,1740216651383,-151.0,0.00012329,2]
[354062809,1740216651393,-151.0,0.00012329,2]
[354062810,1740216651403,-151.0,0.00012329,2]
[354062811,1740216651413,-151.0,0.00012329,2]
[354062812,1740216651423,-151.0,0.00012329,2]
[354062813,1740216651433,-151.0,0.00012329,2]
[354062814,1740216651443,-151.0,0.00012329,2]
[354062815,1740216651452,-151.776505,0.00012329,2]
[354062816,1740216651462,-151.710015,0.00012329,2]
[354062817,1740216651472,-151.0,0.00012329,2]
[354062818,1740216651482,-151.0,0.00012329,2]
[354062819,1740216651492,-151.0,0.00012329,2]
[354062820,1740216651501,-151.0,0.00012329,2]
[354062821,1740216651511,-151.0,0.00012329,2]
[354062822,1740216651520,-151.0,0.00012329,2]
[354062823,1740216651530,-151.0,0.00012329,2]
[354062824,1740216651540,-151.0,0.00012329,2]
[354062825,1740216651550,-151.0,0.00012329,2]
[354062826,1740216651560,-151.0,0.00012329,2]
[354062827,1740216651569,-151.0,0.00012329,2]
[354062828,1740216651579,-151.0,0.00012329,2]
[354062829,1740216651589,-153.770745,0.00012329,2]
[354062830,1740216651601,-498.37,0.00012329,2]
[354062831,1740216651611,-500.0,0.00012338,2]
[354062832,1740216651622,-193.42242899,0.00012338,2]
[354062833,1740216651632,-500.0,0.00012338,2]
[354062834,1740216651642,-500.0,0.00012338,2]
[354062835,1740216651652,-500.0,0.00012338,2]
[354062836,1740216651662,-449.91506498,0.00012338,2]
[354062837,1740216651672,-500.0,0.00012338,2]
[354062838,1740216651682,-500.0,0.00012338,2]
[354062839,1740216651693,-150.0,0.00012342,2]
[354062840,1740216651703,-500.0,0.00012343,2]
[354062841,1740216651713,-277.44297804,0.00012356,2]
[354062842,1740216651723,-150.0,0.00012361,2]
[354062843,1740216651734,-150.0,0.00012368,2]
[354062844,1740216651743,-150.0,0.00012381,2]
[354062845,1740216651753,-150.0,0.00012401,2]
[354062846,1740216651763,-440.37,0.00012411,2]
[354062847,1740216651772,-1507.86,0.00012411,2]
[354062848,1740216651783,-440.37,0.00012411,2]
[354062849,1740216651793,-440.37,0.00012411,2]
[354062850,1740216651802,-500.0,0.0001242,2]
[354062851,1740216651813,-500.0,0.0001242,2]
[354062852,1740216651822,-500.0,0.0001242,2]
[354062853,1740216651832,-500.0,0.0001242,2]
[354062854,1740216651843,-500.0,0.0001242,2]
[354062855,1740216651852,-151.0,0.0001242,2]
[354062856,1740216651862,-500.0,0.0001242,2]
[354062857,1740216651872,-150.0,0.00012421,2]
[354062858,1740216651882,-500.0,0.00012425,2]
[354062859,1740216651892,-377.52173656,0.00012429,2]
[354062860,1740216651902,-30814.20972719,0.00012437,2]
[354062861,1740216651912,-151.0,0.00012437,2]
[354062862,1740216651922,-151.0,0.00012437,2]
[354062863,1740216651932,-150.0,0.0001244,2]
[354062864,1740216651943,-150.0,0.0001246,2]
[354062865,1740216651952,-150.0,0.00012475,2]
[354062866,1740216651963,-150.0,0.0001248,2]
[354062867,1740216651972,-159.554616,0.0001248,5]
[354062868,1740216651982,-150.0,0.00012499,2]
[354062869,1740216651992,-500.0,0.00012502,2]
[354062870,1740216652001,-420.0061508,0.00012502,2]
[354062871,1740216652012,-500.0,0.00012502,2]
[354062872,1740216652021,-575.43450735,0.00012502,2]
[354062873,1740216652031,-183.84067367,0.00012507,2]
[354062874,1740216652041,-150.0,0.00012519,2]
[354062875,1740216652051,-150.0,0.00012539,2]
[354062876,1740216652060,-150.0,0.00012558,2]
[354062877,1740216652070,-150.0,0.00012578,2]
[354062878,1740216652080,-150.0,0.00012598,2]